[Event "CCT Chesscom Classic-D2 2024"]
[Site "Online"]
[Date "2024.05.12"]
[Round "52"]
[White "Caruana, Fabiano"]
[Black "Esipenko, Andrey"]
[Result "1/2-1/2"]
[ECO "C55"]
[WhiteElo "2805"]
[BlackElo "2704"]
[Annotator "TA"]
[PlyCount "68"]
[EventDate "2024.05.08"]
[EventType "k.o."]
[EventCountry "NET"]
[SourceTitle "playchess.com"]
[Source "ChessBase"]
[SourceQuality "1"]
[TimeControl "600+2"]

{[%evp 9,68,14,13,14,12,6,8,6,6,2,0,1,16,10,7,0,16,11,8,12,19,0,8,0,10,0,0,0,0,0,0,0,0,0,0,0,0,-116,-121,-113,-12,0,97,-112,-118,-120,-121,-117,-121,-125,0,-156,-26,-44,0,0,0,-16,0,0,0]} 1. e4 {[%emt 0:00:03]} e5 {[%emt 0:00:08]} 2. Nf3 {[%emt 0:00:01]} Nc6 {[%emt 0:00:01]} 3. Bc4 {[%emt 0:00:01]} Nf6 {[%emt 0:00:01]} 4. d3 {[%emt 0:00:01]} Be7 {[%emt 0:00:00]} 5. Nc3 {[%emt 0:00:03]} O-O {[%emt 0:00:03]} 6. a3 {[%emt 0:00:02] C55: Two Knights: 4 d3, 4 d4 exd4 5 e5 and Max Lange Attack.} d6 {[%emt 0:00:02]} 7. Bd2 {[%emt 0:00:01]} Bg4 {[%emt 0:00:42]} 8. h3 {[%emt 0:00:03]} Bxf3 {[%emt 0:00:00]} 9. Qxf3 {[%emt 0:00:01]} Nd4 {[%emt 0:00:00] Inhibits Ne2.} 10. Qd1 {[%emt 0:00:01]} c6 {[%emt 0:00:01]} 11. Ba2 $146 {[%emt 0:00:02]} ({Predecessor:} 11. O-O d5 12. Ba2 Qd6 13. Bg5 dxe4 14. dxe4 Rad8 15. Re1 Qc7 16. Qc1 Rd7 17. b4 {½-½ Ksana,V (2127)-Haman,J (2010) CZE-chT2B 1011 2010 (4.5)}) 11... Qc7 {[%emt 0:00:04]} 12. O-O {[%emt 0:00:02]} Rad8 {[%emt 0:00:05]} 13. Ne2 {[%emt 0:01:01]} Ne6 {[%emt 0:00:04]} 14. Ng3 {[%emt 0:00:28]} Rfe8 {[%emt 0:00:03]} 15. Nf5 {[%emt 0:00:16]} Bf8 {[%emt 0:00:03]} 16. Qf3 {[%emt 0:00:02]} d5 {[%emt 0:00:07]} 17. Rad1 {[%emt 0:00:17]} g6 {[%emt 0:00:55]} 18. Nh6+ {[%emt 0:00:07]} Kg7 {[%emt 0:00:01]} 19. c3 {[%emt 0:00:29]} dxe4 {[%emt 0:05:56]} 20. dxe4 {[%emt 0:00:00]} Rxd2 $1 {[%emt 0:00:04]} 21. Rxd2 {[%emt 0:00:03] And now Ng4 would win.} Ng5 {[%emt 0:00:01]} 22. Qe3 $1 {[%emt 0:00:18]} Nfxe4 {[%emt 0:00:03] White must now prevent ...Bc5.} (22... Kxh6 $2 23. h4 (23. Qxa7 $2 Ngxe4 24. Rdd1 Kg7 $19) 23... Nfxe4 24. hxg5+ Nxg5 25. f4 $18 (25. Qxa7 e4 $11)) 23. Rd3 {[%emt 0:02:20]} (23. Nxf7 $1 $11 {remains equal.} Bc5 24. Qxg5 Nxg5 25. Nxg5) 23... Bc5 $17 {[%emt 0:00:16]} (23... Kxh6 24. h4 f5 25. hxg5+ Nxg5 26. Qd2 $16 (26. Qxa7 e4 $17) (26. f4 Ne4 $17)) 24. Qc1 {[%emt 0:00:02][%cal Oh3h4]} Nxf2 {[%emt 0:00:37]} (24... f5 $17 {[%cal Oe8f8] aiming for ...Rf8!} 25. h4 Ne6 (25... Kxh6 26. hxg5+ Kg7 27. b4 $11)) 25. Rxf2 $11 {[%emt 0:00:30]} Ne4 {[%emt 0:00:03] [#]} ({Much worse is} 25... Kxh6 $6 26. h4 Kg7 (26... Bxf2+ 27. Kxf2 Kg7 28. Qxg5 $16) 27. Qxg5 $18) (25... Bxf2+ $6 26. Kxf2 Kxh6 27. h4 $18) (25... Qe7 $1 $11) 26. Ng4 $2 {[%emt 0:00:11]} Nxf2 $17 {[%emt 0:00:06]} 27. Qh6+ {[%emt 0:00:45]} (27. Nxf2 $2 {loses.} e4 28. Qe1 e3 $19 (28... Bxf2+ 29. Kxf2 exd3 30. Qxe8 $11)) 27... Kh8 {[%emt 0:00:02]} 28. Nxf2 {[%emt 0:00:01]} e4 {[%emt 0:00:01]} 29. Re3 {[%emt 0:00:08]} f5 {[%emt 0:00:24]} ({Black should play} 29... Bxe3 $17 30. Qxe3 f5) 30. b4 $2 {[%emt 0:00:44]} Bf8 {[%emt 0:00:50]} (30... Bxe3 $17 31. Qxe3 Qd6) 31. Qg5 {[%emt 0:00:29]} Be7 {[%emt 0:00:02]} 32. Qh6 $1 {[%emt 0:00:02]} Bf8 {[%emt 0:00:03]} 33. Qg5 {[%emt 0:00:04]} Be7 {[%emt 0:00:02]} 34. Qh6 $1 {[%emt 0:00:01]} Bf8 {[%emt 0:00:14]} 1/2-1/2

[Event "CCT Chesscom Classic-D2 2024"]
[Site "Online"]
[Date "2024.05.12"]
[Round "52"]
[White "So, Wesley"]
[Black "Kollars, Dmitrij"]
[Result "1/2-1/2"]
[ECO "D35"]
[WhiteElo "2757"]
[BlackElo "2648"]
[Annotator "TA"]
[PlyCount "66"]
[EventDate "2024.05.08"]
[EventType "k.o."]
[EventCountry "NET"]
[SourceTitle "playchess.com"]
[Source "ChessBase"]
[SourceQuality "1"]
[TimeControl "600+2"]

{[%evp 12,66,27,17,33,31,33,22,36,25,27,18,18,18,31,4,60,5,8,-6,-6,-27,-16,-12,-6,-8,0,-2,0,0,0,0,0,0,0,0,0,0,0,0,0,0,0,-6,-4,-8,0,0,0,0,8,0,8,8,8,0,0]} 1. d4 {[%emt 0:00:16]} d5 {[%emt 0:00:04]} 2. c4 {[%emt 0:00:01]} e6 {[%emt 0:00:01]} 3. Nc3 {[%emt 0:00:02]} Nf6 {[%emt 0:00:04]} 4. cxd5 {[%emt 0:00:04]} exd5 {[%emt 0:00:00]} 5. Bg5 {[%emt 0:00:02]} Be7 {[%emt 0:00:04]} 6. e3 {[%emt 0:00:02]} h6 {[%emt 0:00:04]} 7. Bh4 {[%emt 0:00:01]} Bg4 {[%emt 0:00:04]} 8. f3 {[%emt 0:00:22]} Be6 {[%emt 0:00:02]} 9. Bd3 {[%emt 0:00:01]} c5 {[%emt 0:00:14]} 10. Nge2 {[%emt 0:00:02]} Nc6 {[%emt 0:00:09]} 11. O-O {[%emt 0:00:03]} O-O {[%emt 0:00:06]} 12. Rc1 {[%emt 0:00:22]} Rc8 {[%emt 0:00:06]} 13. Kh1 {[%emt 0:00:06]} Re8 {[%emt 0:00:39]} (13... cxd4 $11 14. exd4 Re8) 14. dxc5 {[%emt 0:01:40]} (14. Nf4 $14) 14... Bxc5 $11 {[%emt 0:00:29]} 15. e4 {[%emt 0:00:04]} g5 {[%emt 0:01:32]} 16. exd5 {[%emt 0:00:50]} Nxd5 {[%emt 0:00:12]} (16... Bxd5 $5 17. Bf2 Bxf2 18. Rxf2 Qb6 $11) 17. Nxd5 {[%emt 0:00:11] The position is equal.} Qxd5 {[%emt 0:00:03]} 18. Nc3 $1 {[%emt 0:00:16]} Qd8 {[%emt 0:00:31]} 19. Bg3 {[%emt 0:00:17]} Nb4 {[%emt 0:01:28] Prevents Qc2} 20. Be4 {[%emt 0:00:31]} Qxd1 {[%emt 0:00:18]} (20... Nxa2 21. Qxd8 Rcxd8 (21... Rexd8 $2 {loses.} 22. Nxa2 Bxa2 23. Bxb7 $18) 22. Nxa2 $18) 21. Rfxd1 {[%emt 0:00:00]} Nxa2 {[%emt 0:00:11]} 22. Nxa2 {[%emt 0:00:12]} Bxa2 {[%emt 0:00:01]} 23. Bxb7 {[%emt 0:00:03]} Rcd8 {[%emt 0:00:03]} 24. h4 {[%emt 0:00:43] [#] Hoping for Rxd8.} Be3 {[%emt 0:00:24]} 25. Rxd8 {[%emt 0:00:08]} Rxd8 {[%emt 0:00:00]} 26. Re1 {[%emt 0:00:07]} Bd4 {[%emt 0:00:08]} 27. b4 {[%emt 0:01:09]} Bc3 {[%emt 0:00:41]} 28. Re2 {[%emt 0:00:25]} Bd5 {[%emt 0:00:21]} 29. Bxd5 {[%emt 0:01:08]} Rxd5 {[%emt 0:00:01]} 30. Ra2 {[%emt 0:00:04]} a5 {[%emt 0:00:19]} 31. bxa5 {[%emt 0:00:02]} Rxa5 {[%emt 0:00:02]} 32. Rxa5 {[%emt 0:00:01]} Bxa5 {[%emt 0:00:00]} 33. hxg5 {[%emt 0:00:01]} hxg5 {[%emt 0:00:00] Weighted Error Value: White=0.08 (flawless) /Black=0.07 (flawless) .  Mistake:       	White=1     	Black=1      Inaccurate:     	White=1     	---        OK:         	White=10    	Black=6      Strong:       	White=1     	---} 1/2-1/2

[Event "CCT Chesscom Classic-D2 2024"]
[Site "Online"]
[Date "2024.05.12"]
[Round "52"]
[White "Vidit, Santosh Gujrathi"]
[Black "Martinez Alcantara, Jose Eduardo"]
[Result "1-0"]
[ECO "A44"]
[WhiteElo "2722"]
[BlackElo "2612"]
[Annotator "TA"]
[PlyCount "91"]
[EventDate "2024.05.08"]
[EventType "k.o."]
[EventCountry "NET"]
[SourceTitle "playchess.com"]
[Source "ChessBase"]
[SourceQuality "1"]
[TimeControl "600+2"]

{[%evp 12,91,95,74,78,75,79,72,91,82,111,98,111,117,141,97,97,113,120,104,92,111,98,99,114,81,191,179,170,73,123,62,64,68,67,58,65,62,69,56,58,59,64,71,89,45,88,86,110,96,135,127,153,112,114,122,218,216,205,201,275,241,256,249,261,263,277,277,245,251,272,267,268,273,284,246,279,234,225,153,318,196]} 1. d4 {[%emt 0:00:04]} c5 {[%emt 0:00:03]} 2. d5 {[%emt 0:00:04]} e5 {[%emt 0:00:01]} 3. e4 {[%emt 0:00:04]} d6 {[%emt 0:00:00]} 4. Nc3 {[%emt 0:00:06]} g6 {[%emt 0:00:01]} 5. Bb5+ {[%emt 0:00:20]} Nd7 {[%emt 0:00:01]} 6. a4 {[%emt 0:00:01] A44: Semi-Benoni.} a6 {[%emt 0:00:01]} 7. Be2 {[%emt 0:00:03]} Bh6 {[%emt 0:00:02]} 8. Bxh6 {[%emt 0:00:06]} Nxh6 {[%emt 0:00:00]} 9. Qd2 {[%emt 0:00:01]} Ng8 {[%emt 0:00:00]} 10. Nf3 $146 {[%emt 0:00:10]} ({Predecessor:} 10. h4 h6 11. g4 Ngf6 12. a5 b5 13. axb6 Qxb6 14. b3 Qb4 15. Ra4 Qb7 16. Nf3 {½-½ Beletsky,A (2343)-Akselrod,V (2428) Izmailov Memorial op 10th 2006 (4)}) 10... Qe7 {[%emt 0:00:05]} 11. O-O {[%emt 0:00:02]} Ngf6 {[%emt 0:00:01]} 12. Qh6 {[%emt 0:00:06]} Nh5 {[%emt 0:00:24]} 13. g3 {[%emt 0:00:30]} Ndf6 {[%emt 0:00:03]} 14. Nd2 {[%emt 0:00:17]} Bh3 {[%emt 0:00:03]} 15. Rfe1 {[%emt 0:00:06]} Ng8 {[%emt 0:00:03]} 16. Qe3 {[%emt 0:00:03]} Ngf6 {[%emt 0:00:01]} 17. Nc4 {[%emt 0:00:05]} O-O {[%emt 0:00:03]} 18. Qg5 {[%emt 0:00:20]} Kh8 {[%emt 0:00:14]} (18... Nxd5 $16 19. Qxe7 Nxe7) 19. Qh4 {[%emt 0:00:18]} Bd7 {[%emt 0:00:04]} 20. Nb6 {[%emt 0:00:30]} (20. f4 $18 {is more deadly. Hoping for Bxh5.} Rg8 21. Bxh5 gxh5 22. fxe5 dxe5 23. d6) 20... Rad8 {[%emt 0:00:02]} ({Black should try} 20... h6) 21. Nxd7 {[%emt 0:00:21]} (21. Bxh5 $16 gxh5 22. f3) 21... Rxd7 $14 {[%emt 0:00:01]} 22. a5 {[%emt 0:00:10]} Ng7 {[%emt 0:00:01]} 23. Bf1 {[%emt 0:00:09]} Ng8 {[%emt 0:00:04]} 24. Qxe7 {[%emt 0:00:03]} Rxe7 {[%emt 0:00:00]} 25. Na4 {[%emt 0:00:19]} f5 {[%emt 0:00:01]} 26. f3 {[%emt 0:00:19]} h5 {[%emt 0:00:09]} 27. Nb6 {[%emt 0:00:25]} f4 {[%emt 0:00:01]} 28. Be2 {[%emt 0:00:05]} fxg3 {[%emt 0:00:02]} 29. hxg3 {[%emt 0:00:01]} Nh6 {[%emt 0:00:02]} 30. Nc4 {[%emt 0:00:05]} Rf6 {[%emt 0:00:04]} 31. Kg2 {[%emt 0:00:08]} Kg8 {[%emt 0:00:02]} 32. Rh1 {[%emt 0:00:04]} g5 {[%emt 0:00:01]} 33. Rab1 {[%emt 0:00:09]} Rg6 {[%emt 0:00:05]} (33... Rc7 $16 34. c3 Rd7) 34. b4 $18 {[%emt 0:00:14]} cxb4 {[%emt 0:00:00]} 35. Rxb4 {[%emt 0:00:00]} h4 {[%emt 0:00:03]} 36. gxh4 {[%emt 0:00:07]} gxh4+ {[%emt 0:00:01]} 37. Kf2 {[%emt 0:00:01]} Nh5 {[%emt 0:00:06]} 38. Rxh4 {[%emt 0:00:12]} Nf4 {[%emt 0:00:00]} 39. Bf1 {[%emt 0:00:02]} Rc7 {[%emt 0:00:05]} 40. Ne3 {[%emt 0:00:16]} Nf7 {[%emt 0:00:17]} 41. Rc4 {[%emt 0:00:10]} Rxc4 {[%emt 0:00:05]} 42. Nxc4 {[%emt 0:00:00]} ({Much less strong is} 42. Bxc4 Kg7 43. Bd3 Kf6 $18) 42... Kf8 {[%emt 0:00:01]} 43. Ne3 {[%emt 0:00:05]} Ke7 {[%emt 0:00:10]} 44. Nf5+ {[%emt 0:00:06]} Kf6 {[%emt 0:00:01]} 45. Rh7 {[%emt 0:00:07]} Rg5 $2 {[%emt 0:00:04]} (45... Rg8 $16 46. Ne3 Kg6) 46. c4 {[%emt 0:00:20]} 1-0

[Event "CCT Chesscom Classic-D2 2024"]
[Site "Online"]
[Date "2024.05.12"]
[Round "52"]
[White "Esipenko, Andrey"]
[Black "Caruana, Fabiano"]
[Result "1/2-1/2"]
[ECO "C50"]
[WhiteElo "2704"]
[BlackElo "2805"]
[Annotator "TA"]
[PlyCount "67"]
[EventDate "2024.05.08"]
[EventType "k.o."]
[EventCountry "NET"]
[SourceTitle "playchess.com"]
[Source "ChessBase"]
[SourceQuality "1"]
[TimeControl "600+2"]

{[%evp 9,67,14,14,14,0,-10,9,13,10,4,36,48,50,42,40,29,17,28,68,21,66,62,108,103,97,102,105,117,107,125,168,88,93,102,100,101,143,102,144,97,153,147,150,140,145,34,31,31,39,0,0,0,0,0,0,0,0,0,0,0]} 1. e4 {[%emt 0:00:03]} e5 {[%emt 0:00:05]} 2. Nf3 {[%emt 0:00:02]} Nc6 {[%emt 0:00:01]} 3. Bc4 {[%emt 0:00:03]} Nf6 {[%emt 0:00:02]} 4. d3 {[%emt 0:00:04]} Bc5 {[%emt 0:00:02]} 5. h3 {[%emt 0:00:12]} d6 {[%emt 0:00:04]} 6. a3 {[%emt 0:00:01]} a5 {[%emt 0:00:22]} 7. Be3 {[%emt 0:00:04]} O-O {[%emt 0:00:09]} 8. Bxc5 {[%emt 0:00:36]} dxc5 {[%emt 0:00:02]} 9. Nc3 {[%emt 0:00:03]} Be6 {[%emt 0:00:18]} 10. Bb5 {[%emt 0:00:54]} Nd4 {[%emt 0:01:58]} 11. Nxe5 {[%emt 0:00:07][%cal Bf3e5,Be5c4,Bc4e3][%mdl 32]} Qd6 {[%emt 0:01:22]} 12. Nc4 {[%emt 0:02:15]} Qf4 {[%emt 0:00:03]} 13. Ne3 $1 {[%emt 0:00:01]} Rad8 {[%emt 0:00:27]} 14. a4 {[%emt 0:00:42]} (14. Bc4 $14) 14... c6 {[%emt 0:01:17]} 15. Bc4 {[%emt 0:00:06]} b5 {[%emt 0:00:11]} 16. axb5 $16 {[%emt 0:00:14]} (16. Bxe6 {feels hotter.} fxe6 17. O-O c4 18. Ne2) 16... cxb5 {[%emt 0:00:00]} 17. Bxb5 {[%emt 0:00:11]} Nxb5 {[%emt 0:01:18]} 18. Nxb5 {[%emt 0:00:04][%cal Ob5c3]} Qb8 {[%emt 0:00:01]} 19. Rxa5 {[%emt 0:00:57] Threatens to win with Nc3.} Nxe4 {[%emt 0:00:22]} 20. O-O {[%emt 0:00:10]} ({White should try} 20. Qc1 $18 Nf6 21. O-O) 20... c4 {[%emt 0:00:11]} 21. d4 {[%emt 0:00:55]} (21. Nxc4 Bxc4 22. Na3 Be6 $19) 21... Qb6 {[%emt 0:00:12] [#]} 22. Qa1 {[%emt 0:00:03]} h6 {[%emt 0:00:19]} 23. Qa3 {[%emt 0:00:43]} Rfe8 {[%emt 0:00:10][%cal Bf8e8,Be8c8,Bc8c5][%mdl 32]} 24. Nc3 {[%emt 0:00:40]} (24. Re1 $142) 24... Nd2 {[%emt 0:00:28]} (24... Rxd4 $142 25. Ra8 Rb8 26. Rxb8+ Qxb8) 25. Rd1 {[%emt 0:00:06]} Rxd4 {[%emt 0:00:03][%cal Oe6h3]} 26. Qc5 {[%emt 0:00:16]} Qd8 {[%emt 0:00:41] [#]} 27. Ncd5 {[%emt 0:00:16]} ({Better is} 27. Rda1 $1 $16 {[%cal Oa5a8] aiming for Ra8!} Ne4 28. Nxe4 Rxe4 29. f3) 27... Qh4 $14 {[%emt 0:00:03][%cal Oe6h3] And now ...Bxh3! would win.} 28. Nc7 {[%emt 0:00:37] Excellent horsemanship.} (28. f4 {gets mated.} Nf3+ 29. gxf3 Rxd1+ (29... Qg3+ {is a self mate.} 30. Kh1 Rxd1+ 31. Nxd1 Bxd5 32. Qf8+ Kxf8 33. Ne3 Bxf3+ 34. Ng2 Qxg2#) 30. Nxd1 Qg3+ (30... Qxh3 $2 {perishes.} 31. Qf2 $18) 31. Kh1 Bxd5 (31... Bxh3 32. N1e3 $11) (31... Bxh3 32. N1e3 $11)) 28... Rc8 {[%emt 0:00:17]} 29. Nxe6 {[%emt 0:00:30]} (29. Qe5 $5 Re4 30. Qc3 Rxc7 31. Rxd2 $16) 29... Rxc5 {[%emt 0:00:08] The position is equal.} 30. Ra8+ {[%emt 0:00:03]} Kh7 {[%emt 0:00:01]} 31. Nf8+ {[%emt 0:00:01]} Kg8 {[%emt 0:00:00]} 32. Ne6+ {[%emt 0:00:04]} Kh7 {[%emt 0:00:01]} 33. Nf8+ {[%emt 0:00:02]} Kg8 {[%emt 0:00:01]} 34. Ne6+ {[%emt 0:00:03] Weighted Error Value: White=0.17 (very precise) /Black=0.15 (very precise) .  Mistake:       	White=4     	Black=2      Inaccurate:     	White=1     	Black=5      OK:         	White=16    	Black=8      Best:        	White=1     	Black=7      Strong:       	White=1     	---} 1/2-1/2

[Event "CCT Chesscom Classic-D2 2024"]
[Site "Online"]
[Date "2024.05.12"]
[Round "52"]
[White "Sevian, Samuel"]
[Black "Hakobyan, Aram"]
[Result "1-0"]
[ECO "D27"]
[WhiteElo "2699"]
[BlackElo "2617"]
[Annotator "TA"]
[PlyCount "47"]
[EventDate "2024.05.08"]
[EventType "k.o."]
[EventCountry "NET"]
[SourceTitle "playchess.com"]
[Source "ChessBase"]
[SourceQuality "1"]
[TimeControl "600+2"]

{[%evp 11,47,26,30,16,9,17,18,7,26,-6,49,42,58,53,49,54,49,41,35,41,489,483,1036,1084,1084,1076,1078,653,657,648,805,799,1093,1001,897,762,856,727]} 1. d4 {[%emt 0:00:05]} d5 {[%emt 0:00:03]} 2. c4 {[%emt 0:00:02]} dxc4 {[%emt 0:00:01]} 3. e3 {[%emt 0:00:01]} Nf6 {[%emt 0:00:01]} 4. Bxc4 {[%emt 0:00:02]} e6 {[%emt 0:00:01]} 5. Nf3 {[%emt 0:00:10]} a6 {[%emt 0:00:01]} 6. O-O {[%emt 0:00:07]} c5 {[%emt 0:00:01]} 7. Be2 {[%emt 0:00:21]} cxd4 {[%emt 0:00:30]} 8. Nxd4 {[%emt 0:00:02]} Bd6 {[%emt 0:00:06]} 9. b3 {[%emt 0:00:08] The position is equal.} O-O {[%emt 0:00:04]} 10. Bb2 {[%emt 0:00:01]} b5 {[%emt 0:00:53]} (10... Qc7 $11) 11. a4 $14 {[%emt 0:00:11]} bxa4 {[%emt 0:00:00]} 12. Rxa4 {[%emt 0:00:01]} Bb7 {[%emt 0:00:12]} 13. Bf3 {[%emt 0:00:17]} Bxf3 {[%emt 0:00:57]} 14. Qxf3 {[%emt 0:00:02]} Nbd7 $1 {[%emt 0:00:01]} 15. Nd2 {[%emt 0:00:01] Black must now prevent Nc4.} Nc5 $2 {[%emt 0:00:32][%mdl 8192] [#] A mistake that costs the game.} (15... Re8 $14) 16. Nc6 $1 $18 {[%emt 0:00:40] White is clearly winning.} Qc7 {[%emt 0:03:05] [#]} (16... Qd7 $142 17. Qxf6 e5 (17... Bxh2+ $2 18. Kxh2 e5 19. Ne7+ $18)) 17. Qxf6 $3 {[%emt 0:00:05][%csl Gb2][%cal Rf6g7][%mdl 512]} e5 {[%emt 0:00:01]} 18. Rg4 $1 {[%emt 0:00:02]} Ne6 {[%emt 0:00:02]} 19. Bxe5 {[%emt 0:01:47]} Bxe5 {[%emt 0:00:12]} 20. Nxe5 {[%emt 0:00:02] Excellent horsemanship.} h5 {[%emt 0:00:17]} 21. Rg3 {[%emt 0:00:02]} Rad8 {[%emt 0:00:12]} 22. Ndc4 {[%emt 0:00:11]} Rd5 {[%emt 0:00:20]} 23. h4 {[%emt 0:00:18]} Rfd8 {[%emt 0:00:03]} 24. Qf5 {[%emt 0:00:09] Weighted Error Value: White=0.88/Black=0.66.  Loses game:     	---       	Black=1      Mistake:       	---       	Black=2      Inaccurate:     	White=1     	---        OK:         	White=2     	Black=6      Best:        	---       	Black=1      Strong:       	White=1     	Black=1      Brilliant:      	White=1     	---} 1-0

[Event "CCT Chesscom Classic-D2 2024"]
[Site "Online"]
[Date "2024.05.12"]
[Round "52"]
[White "Kollars, Dmitrij"]
[Black "So, Wesley"]
[Result "1/2-1/2"]
[ECO "C54"]
[WhiteElo "2648"]
[BlackElo "2757"]
[Annotator "RC"]
[PlyCount "208"]
[EventDate "2024.05.08"]
[EventType "k.o."]
[EventCountry "NET"]
[SourceTitle "playchess.com"]
[Source "ChessBase"]
[SourceQuality "1"]
[TimeControl "600+2"]

1. e4 {[%emt 0:00:06]} e5 {[%emt 0:02:57]} 2. Nf3 {[%emt 0:00:03]} Nc6 {[%emt 0:00:02]} 3. Bc4 {[%emt 0:00:18]} Bc5 {[%emt 0:00:04]} 4. c3 {[%emt 0:00:09]} Nf6 {[%emt 0:00:04]} 5. d4 {[%emt 0:00:03]} exd4 {[%emt 0:00:04]} 6. e5 {[%emt 0:00:02]} d5 {[%emt 0:00:05]} 7. Be2 {[%emt 0:00:03]} Ne4 {[%emt 0:00:03]} 8. cxd4 {[%emt 0:00:03]} Bb4+ {[%emt 0:00:03]} 9. Nbd2 {[%emt 0:00:08]} O-O {[%emt 0:00:09]} 10. O-O {[%emt 0:00:09]} f6 {[%emt 0:00:04]} 11. exf6 {[%emt 0:00:17]} Nxf6 {[%emt 0:00:04]} 12. Nb3 {[%emt 0:00:19]} Ne4 {[%emt 0:00:04]} 13. Be3 {[%emt 0:00:12]} Bd6 {[%emt 0:00:21]} 14. Rc1 {[%emt 0:00:04]} Ne7 {[%emt 0:00:02]} 15. Nc5 {[%emt 0:00:27]} Nxc5 {[%emt 0:00:09]} 16. dxc5 {[%emt 0:00:03]} Bf4 {[%emt 0:00:02]} 17. Bxf4 {[%emt 0:00:20]} Rxf4 {[%emt 0:00:02]} 18. Qd2 {[%emt 0:00:03]} Rf6 {[%emt 0:00:11]} 19. Rfe1 {[%emt 0:00:38]} Bg4 {[%emt 0:00:05]} 20. Nd4 {[%emt 0:00:10]} Bxe2 {[%emt 0:00:05]} 21. Rxe2 {[%emt 0:00:21]} Qd7 {[%emt 0:00:04]} 22. Rce1 {[%emt 0:00:17]} Nc6 {[%emt 0:00:03]} 23. f3 {[%emt 0:00:52]} h6 {[%emt 0:00:18]} 24. b4 {[%emt 0:00:11]} Nxd4 {[%emt 0:00:05]} 25. Qxd4 {[%emt 0:00:03]} Rf7 {[%emt 0:00:03]} 26. Re6 {[%emt 0:00:37]} Raf8 {[%emt 0:00:13]} 27. c6 {[%emt 0:00:16]} bxc6 {[%emt 0:00:02]} 28. Qxa7 {[%emt 0:00:03]} d4 {[%emt 0:00:05]} 29. R6e4 {[%emt 0:00:42]} Rd8 {[%emt 0:00:12]} 30. Rd1 {[%emt 0:00:10]} d3 {[%emt 0:00:07]} 31. Qc5 {[%emt 0:00:17]} Rf5 {[%emt 0:00:13]} 32. Qc4+ {[%emt 0:00:05]} Kh7 {[%emt 0:00:17]} 33. a4 {[%emt 0:00:09]} Rd5 {[%emt 0:00:09]} 34. a5 {[%emt 0:00:09]} Rd4 {[%emt 0:00:16]} 35. Rxd4 {[%emt 0:00:32]} Qxd4+ {[%emt 0:00:02]} 36. Qxd4 {[%emt 0:00:02]} Rxd4 {[%emt 0:00:02]} 37. Kf2 {[%emt 0:00:03]} Rxb4 {[%emt 0:00:04]} 38. Ra1 {[%emt 0:00:03]} c5 {[%emt 0:00:11]} 39. a6 {[%emt 0:00:04]} Rb8 {[%emt 0:00:02]} 40. Ke3 {[%emt 0:00:07]} c4 {[%emt 0:00:06]} 41. Kd4 {[%emt 0:00:09]} d2 {[%emt 0:00:14]} 42. Kc3 {[%emt 0:00:10]} d1=Q {[%emt 0:00:30]} 43. Rxd1 {[%emt 0:00:04]} Rb3+ {[%emt 0:00:08]} 44. Kxc4 {[%emt 0:00:21]} Ra3 {[%emt 0:00:02]} 45. Rd2 {[%emt 0:00:03]} Rxa6 {[%emt 0:00:04]} 46. Rb2 {[%emt 0:00:08]} h5 {[%emt 0:00:07]} 47. Kd4 {[%emt 0:00:04]} Rd6+ {[%emt 0:00:05]} 48. Ke5 {[%emt 0:00:04]} g6 {[%emt 0:00:03]} 49. Rc2 {[%emt 0:00:03]} Rd7 {[%emt 0:00:04]} 50. h4 {[%emt 0:00:10]} Kh6 {[%emt 0:00:04]} 51. Kf4 {[%emt 0:00:12]} Rf7+ {[%emt 0:00:04]} 52. Kg3 {[%emt 0:00:03]} Rd7 {[%emt 0:00:02]} 53. Rc6 {[%emt 0:00:03]} Rf7 {[%emt 0:00:03]} 54. Kh3 {[%emt 0:00:02]} Rd7 {[%emt 0:00:03]} 55. Kh2 {[%emt 0:00:03]} Re7 {[%emt 0:00:05]} 56. Kg1 {[%emt 0:00:03]} Rd7 {[%emt 0:00:03]} 57. Kf2 {[%emt 0:00:02]} Rd2+ {[%emt 0:00:03]} 58. Kg3 {[%emt 0:00:03]} Rd7 {[%emt 0:00:02]} 59. Kh3 {[%emt 0:00:05]} Rf7 {[%emt 0:00:03]} 60. Kh2 {[%emt 0:00:06]} Kg7 {[%emt 0:00:04]} 61. Rc3 {[%emt 0:00:05]} Kh6 {[%emt 0:00:03]} 62. g3 {[%emt 0:00:03]} Kg7 {[%emt 0:00:03]} 63. Kg2 {[%emt 0:00:03]} Rd7 {[%emt 0:00:04]} 64. Rc6 {[%emt 0:00:03]} Kh6 {[%emt 0:00:03]} 65. g4 {[%emt 0:00:04]} hxg4 {[%emt 0:00:03]} 66. fxg4 {[%emt 0:00:02]} Kg7 {[%emt 0:00:05]} 67. Kg3 {[%emt 0:00:02]} Rf7 {[%emt 0:00:03]} 68. Rc5 {[%emt 0:00:04]} Kh7 {[%emt 0:00:03]} 69. Rc4 {[%emt 0:00:03]} Kg7 {[%emt 0:00:03]} 70. Rc6 {[%emt 0:00:02]} Kh7 {[%emt 0:00:03]} 71. g5 {[%emt 0:00:04]} Kg7 {[%emt 0:00:03]} 72. Rc4 {[%emt 0:00:02]} Kh7 {[%emt 0:00:05]} 73. Rc5 {[%emt 0:00:02]} Kg7 {[%emt 0:00:03]} 74. Rc6 {[%emt 0:00:03]} Re7 {[%emt 0:00:05]} 75. Kf4 {[%emt 0:00:02]} Kh7 {[%emt 0:00:05]} 76. Rc5 {[%emt 0:00:03]} Kg7 {[%emt 0:00:03]} 77. Rc4 {[%emt 0:00:04]} Kh7 {[%emt 0:00:04]} 78. Kf3 {[%emt 0:00:08]} Kg7 {[%emt 0:00:03]} 79. Rc6 {[%emt 0:00:03]} Kh7 {[%emt 0:00:05]} 80. Kf4 {[%emt 0:00:03]} Kg7 {[%emt 0:00:03]} 81. Rc5 {[%emt 0:00:02]} Kh7 {[%emt 0:00:03]} 82. Re5 {[%emt 0:00:03]} Rd7 {[%emt 0:00:09]} 83. Ke4 {[%emt 0:00:03]} Kg7 {[%emt 0:00:04]} 84. Re6 {[%emt 0:00:03]} Rf7 {[%emt 0:00:04]} 85. Rc6 {[%emt 0:00:02]} Re7+ {[%emt 0:00:04]} 86. Kd5 {[%emt 0:00:03]} Rf7 {[%emt 0:00:04]} 87. Ke6 {[%emt 0:00:05]} Kg8 {[%emt 0:00:03]} 88. Rc4 {[%emt 0:00:04]} Kg7 {[%emt 0:00:03]} 89. Rd4 {[%emt 0:00:02]} c5 {[%emt 0:00:07]} 90. Rc4 {[%emt 0:00:03]} Rf5 {[%emt 0:00:04]} 91. Ra4 {[%emt 0:00:03]} Rf7 {[%emt 0:00:05]} 92. Rc4 {[%emt 0:00:05]} Rf5 {[%emt 0:00:03]} 93. Kd6 {[%emt 0:00:03]} Kf7 {[%emt 0:00:05]} 94. Re4 {[%emt 0:00:03]} Kg7 {[%emt 0:00:05]} 95. Ra4 {[%emt 0:00:03]} Kf7 {[%emt 0:00:05]} 96. Ra7+ {[%emt 0:00:03]} Kg8 {[%emt 0:00:04]} 97. Ke6 {[%emt 0:00:02]} Rf4 {[%emt 0:00:05]} 98. Rc7 {[%emt 0:00:05]} c4 {[%emt 0:00:04]} 99. Ke5 {[%emt 0:00:05]} Rxh4 {[%emt 0:00:06]} 100. Kf6 {[%emt 0:00:02]} Rd4 {[%emt 0:00:03]} 101. Rc8+ {[%emt 0:00:02]} Kh7 {[%emt 0:00:03]} 102. Rc7+ {[%emt 0:00:03]} Kg8 {[%emt 0:00:03]} 103. Rc6 {[%emt 0:00:04]} Kh7 {[%emt 0:00:05]} 104. Rc7+ {[%emt 0:00:03]} Kg8 {[%emt 0:00:02]} 1/2-1/2